bitfinex/quotes_SOLUSD_20250308
["timestamp","ask_amount","ask_price","bid_price","bid_amount"]
[1741430916408,0.03,139.08,139.05,87.10982497]
[1741430916614,0.03,139.08,139.06,7.1911]
[1741430917290,0.03,139.08,139.05,65.86964886]
[1741430917291,0.17216157,139.08,139.05,65.86964886]
[1741430918306,21.41233768,139.08,139.05,47.22]
[1741430918504,21.24017611,139.07,139.05,41.0]
[1741430918810,0.14216157,139.06,139.03,39.88982497]
[1741430919217,7.36246157,139.08,139.03,39.88982497]
[1741430919411,7.36246157,139.08,139.02,41.0]
[1741430919412,0.14216157,139.06,139.02,41.0]
[1741430919987,0.14216157,139.06,139.02,48.1931]
[1741430920185,0.14216157,139.06,139.02,41.0]
[1741430920415,0.14216157,139.05,139.02,41.0]
[1741430921621,7.33386157,139.05,139.02,41.0]
[1741430921923,21.38233768,139.07,139.02,41.0]
[1741430922123,0.14216157,139.05,139.02,41.0]
[1741430922726,0.14216157,139.06,139.02,41.0]
[1741430923020,0.14216157,139.06,139.01,88.08342497]
[1741430923548,0.14216157,139.07,139.02,39.88982497]
[1741430925329,0.14216157,139.07,139.02,47.08272497]
[1741430928929,0.14216157,139.07,139.02,88.08272497]
[1741430929320,28.57293768,139.07,139.02,59.64964886]
[1741430929520,0.14216157,139.05,139.02,59.64964886]
[1741430931216,0.14216157,139.05,139.0,68.49317611]
[1741430931217,7.33406157,139.05,139.0,68.49317611]
[1741430931539,28.57423768,139.05,139.0,41.033]
[1741430932047,28.57423768,139.05,139.02,0.033]
[1741430932723,0.14216157,139.05,139.02,0.033]
[1741430935045,20.9335572,139.05,139.02,0.033]
[1741430937944,13.7418572,139.05,139.02,0.033]
[1741430938125,0.14216157,139.05,139.02,0.033]
[1741430938448,7.33386157,139.05,139.02,0.033]
[1741430939143,0.14216157,139.05,139.02,0.033]
[1741430939344,7.33386157,139.05,139.02,0.033]
[1741430939543,0.14216157,139.05,139.02,0.033]
[1741430940132,7.33376157,139.05,139.02,0.033]
[1741430940550,0.14216157,139.05,139.02,0.033]
[1741430943860,7.33376157,139.05,139.02,0.033]
[1741430944361,0.14216157,139.05,139.02,0.033]
[1741430944546,0.14216157,139.06,139.02,54.63269563]
[1741430944858,0.14216157,139.06,139.02,41.033]
[1741430948259,0.14216157,139.06,139.02,48.2261]
[1741430949344,0.14216157,139.06,139.02,41.033]
[1741430950061,0.14216157,139.06,139.02,48.226]
[1741430954274,20.9624572,139.07,139.02,48.226]
[1741430955569,20.9624572,139.07,139.02,41.033]
[1741430955741,20.9624572,139.07,139.02,0.033]
[1741430957474,20.9624572,139.07,139.02,7.2259]
[1741430957671,0.17216157,139.07,139.02,7.2259]
[1741430958678,7.36286157,139.07,139.02,7.2259]
[1741430958890,7.36286157,139.07,139.02,0.033]
[1741430959177,0.14216157,139.05,139.02,0.033]
[1741430960770,7.33386157,139.05,139.02,0.033]
[1741430960974,13.7718572,139.07,139.02,0.033]
[1741430961582,0.14216157,139.05,139.02,0.033]
[1741430962869,7.33386157,139.05,139.02,0.033]
[1741430966191,13.7418572,139.03,139.02,0.033]
[1741430966992,19.8205572,139.03,139.02,0.033]
[1741430968178,27.0131572,139.03,139.02,0.033]
[1741430968595,19.8205572,139.03,139.02,0.033]
[1741430978906,27.0131572,139.03,139.02,0.033]
[1741430982609,13.7418572,139.03,139.02,0.033]
[1741430983210,0.14216157,139.03,139.02,0.033]
[1741430984315,20.9344572,139.03,139.02,0.033]
[1741430992705,13.7418572,139.03,139.02,0.033]
[1741430993023,0.14216157,139.03,139.02,0.033]
[1741430998631,0.14216157,139.03,139.02,7.2262]
[1741430998831,0.14216157,139.03,139.02,0.033]
[1741430999297,7.33476157,139.03,139.02,0.033]
[1741430999498,20.9344572,139.03,139.02,0.033]
[1741430999913,0.14216157,139.03,139.02,0.033]
[1741431000714,7.33476157,139.03,139.02,0.033]
[1741431004327,20.9344572,139.03,139.02,0.033]
[1741431006328,20.9644572,139.03,139.02,0.033]
[1741431015840,13.7718572,139.03,139.02,0.033]
[1741431016427,0.17216157,139.03,139.02,0.033]
[1741431017839,20.9644572,139.03,139.02,0.033]
[1741431024042,0.17216157,139.03,139.02,0.033]
[1741431026760,7.36476157,139.03,139.02,0.033]
[1741431027055,20.9644572,139.03,139.02,0.033]
[1741431032350,13.7718572,139.03,139.02,0.033]
[1741431034054,20.9644572,139.03,139.02,0.033]
[1741431040165,20.9644572,139.03,139.0,0.033]
[1741431040166,0.14216157,139.02,139.0,0.033]
[1741431040338,13.7418572,139.01,139.0,0.033]
[1741431041251,20.9355572,139.01,139.0,0.033]
[1741431045963,24.57100512,139.01,139.0,0.033]
[1741431046184,40.10120606,139.0,138.91,41.033]
[1741431046355,0.14216157,138.93,138.91,0.033]
[1741431046667,0.14216157,138.93,138.91,7.2318]
[1741431047567,13.59969563,138.96,138.91,7.2318]
[1741431047568,0.14216157,138.95,138.91,7.2318]
[1741431047938,0.14216157,138.95,138.92,0.3304917]
[1741431048164,0.14216157,138.95,138.91,7.2318]
[1741431049238,0.14216157,138.94,138.91,7.2318]
[1741431049441,0.14216157,138.94,138.91,0.033]
[1741431050562,0.14216157,138.93,138.91,0.033]
[1741431050864,13.7418572,138.93,138.91,0.033]
[1741431051665,13.7418572,138.94,138.91,0.033]
[1741431054076,13.7418572,138.92,138.91,0.033]
[1741431055274,0.14216157,138.92,138.91,0.033]
[1741431059481,0.14216157,138.93,138.91,0.033]
[1741431060378,0.14216157,138.94,138.91,0.033]
[1741431060558,13.7418572,138.94,138.91,0.033]
[1741431061472,13.7418572,138.92,138.91,0.033]
[1741431063260,13.7418572,138.93,138.91,0.033]
[1741431064787,0.14216157,138.93,138.91,0.033]
[1741431066791,0.14216157,138.94,138.91,0.033]
[1741431070871,13.7418572,138.94,138.91,0.033]
[1741431071278,0.14216157,138.92,138.91,0.033]
[1741431071671,13.7418572,138.92,138.91,0.033]
[1741431071873,13.7418572,138.93,138.91,0.033]
[1741431072585,13.7418572,138.92,138.91,0.033]
[1741431073988,20.9401572,138.92,138.91,0.033]
[1741431074374,13.7418572,138.92,138.91,0.033]
[1741431075193,0.14216157,138.92,138.91,0.033]
[1741431076798,13.7418572,138.92,138.91,0.033]
[1741431076972,20.9401572,138.92,138.91,0.033]
[1741431077536,0.14216157,138.89,138.88,0.033]
[1741431077682,0.14216157,138.89,138.88,0.0001]
[1741431077882,6.36216157,138.89,138.87,0.0001]
[1741431078131,68.14063972,138.88,138.87,0.0001]
[1741431078414,136.79028858,138.88,138.87,0.0001]
[1741431080512,143.99068858,138.88,138.87,0.0001]
[1741431080918,145.99068858,138.88,138.87,0.0001]
[1741431082210,143.99068858,138.88,138.87,0.0001]
[1741431082512,0.14216157,138.88,138.87,0.0001]
[1741431083617,0.14216157,138.88,138.87,13.59979563]
[1741431083811,0.14216157,138.88,138.87,54.59979563]
[1741431084414,0.14216157,138.88,138.87,61.80069563]
[1741431086632,0.14216157,138.88,138.87,48.201]
[1741431094231,0.14216157,138.88,138.87,61.80069563]
[1741431096333,0.14216157,138.88,138.87,48.201]
[1741431097735,0.14216157,138.88,138.87,41.0001]
[1741431099133,0.14216157,138.88,138.87,48.201]
[1741431099331,0.14216157,138.88,138.87,41.0001]
[1741431099508,20.9422572,138.88,138.87,0.0001]
[1741431099833,20.9722572,138.88,138.87,0.0001]
[1741431100441,0.17216157,138.88,138.87,0.0001]
[1741431102219,13.7718572,138.88,138.87,0.0001]
[1741431102441,20.9722572,138.88,138.87,0.0001]
[1741431103317,0.17216157,138.88,138.87,0.0001]
[1741431106222,50.14216157,138.86,138.85,0.033]
[1741431106413,69.9618572,138.86,138.84,0.033]
[1741431106621,13.7418572,138.85,138.84,0.033]
[1741431107329,21.46784882,138.85,138.84,0.033]
[1741431108128,28.66984882,138.85,138.84,0.033]
[1741431108547,21.46784882,138.85,138.84,0.033]
[1741431108916,28.66984882,138.85,138.84,0.033]
[1741431111641,28.69984882,138.85,138.84,0.033]
[1741431114326,28.69984882,138.85,138.83,0.033]
[1741431114526,21.46784882,138.84,138.83,0.033]
[1741431115058,21.46784882,138.84,138.83,0.0001]
[1741431115968,28.67034882,138.84,138.83,0.0001]
[1741431130547,21.46784882,138.84,138.83,0.0001]
[1741431131260,13.78502801,138.84,138.83,0.0001]
[1741431131949,20.98752801,138.84,138.83,0.0001]
[1741431133362,28.66844682,138.84,138.83,0.0001]
[1741431134796,28.69844682,138.84,138.83,0.0001]
[1741431136593,21.49594682,138.84,138.83,0.0001]
[1741431137870,28.69844682,138.84,138.83,0.0001]
[1741431141597,21.49594682,138.84,138.83,0.0001]
[1741431142487,28.69844682,138.84,138.83,0.0001]
[1741431143688,21.49594682,138.84,138.83,0.0001]
[1741431146101,0.17216157,138.84,138.83,0.0001]
[1741431165617,13.81247245,138.84,138.83,0.0001]
[1741431165919,21.01497245,138.84,138.83,0.0001]
[1741431168921,13.81247245,138.84,138.83,0.0001]
[1741431173207,21.01497245,138.84,138.83,0.0001]
[1741431182731,39.66462131,138.84,138.83,0.0001]
[1741431182941,97.87872131,138.84,138.83,0.0001]
[1741431183115,13.78247245,138.8,138.79,0.033]
[1741431183637,82.43212131,138.8,138.79,0.033]
[1741431183933,88.26421446,138.8,138.79,0.0001]
[1741431184128,18.79181043,138.79,138.77,0.033]
[1741431184307,18.79181043,138.79,138.69,0.033]
[1741431184308,2.14216157,138.7,138.69,0.033]
[1741431184506,2.14216157,138.7,138.61,22.22952198]
[1741431184507,0.14216157,138.64,138.61,22.22952198]
[1741431184707,0.14216157,138.64,138.59,11.11476099]
[1741431184708,13.78247245,138.64,138.59,11.11476099]
[1741431184913,0.14216157,138.62,138.59,11.11476099]
[1741431185115,0.14216157,138.6,138.56,42.569]
[1741431185319,13.78247245,138.6,138.56,42.569]
[1741431185820,0.14216157,138.58,138.56,42.569]
[1741431186924,0.14216157,138.59,138.56,42.569]
[1741431187335,21.53601852,138.59,138.56,42.569]
[1741431188844,0.14216157,138.59,138.56,42.569]
[1741431189438,0.14216157,138.59,138.56,1.569]
[1741431189947,0.14216157,138.6,138.56,1.569]
[1741431190742,0.14216157,138.6,138.56,8.7859]
[1741431192236,0.14216157,138.61,138.56,30.17975695]
[1741431192527,21.53601852,138.61,138.56,8.7859]
[1741431192742,21.53601852,138.61,138.56,1.569]
[1741431192952,0.14216157,138.59,138.56,1.569]
[1741431194452,0.14216157,138.59,138.56,8.819]
[1741431194753,0.14216157,138.6,138.56,8.819]
[1741431195956,0.14216157,138.58,138.56,8.819]
[1741431196961,0.14216157,138.6,138.56,8.819]
[1741431197865,0.14216157,138.61,138.56,30.21285695]
[1741431198069,21.53601852,138.61,138.56,8.819]
[1741431202278,0.14216157,138.59,138.56,1.602]
[1741431202949,0.14216157,138.58,138.56,1.602]
[1741431203574,0.14216157,138.59,138.56,8.819]
[1741431204572,0.14216157,138.61,138.56,8.819]
[1741431209855,0.14216157,138.62,138.56,8.819]
[1741431210082,0.14216157,138.62,138.56,22.50812707]
[1741431210283,13.83128864,138.62,138.56,22.50812707]
[1741431210762,13.83128864,138.62,138.56,8.819]
[1741431211069,0.14216157,138.6,138.56,8.819]
[1741431211262,0.14216157,138.6,138.56,49.819]
[1741431211458,0.14216157,138.61,138.56,49.819]
[1741431211877,13.83128864,138.61,138.56,49.819]
[1741431213578,0.14216157,138.61,138.56,49.819]
[1741431214992,0.14216157,138.61,138.57,13.68912707]
[1741431215284,0.14216157,138.62,138.57,13.68912707]
[1741431217288,0.14216157,138.62,138.58,7.216]
[1741431217584,0.14216157,138.63,138.58,20.90512707]
[1741431218286,13.83128864,138.63,138.58,7.216]
[1741431220067,0.14216157,138.63,138.58,7.216]
[1741431222676,0.14216157,138.63,138.58,38.94522707]
[1741431222873,13.83128864,138.65,138.58,38.94522707]
[1741431223074,13.83128864,138.65,138.59,13.68912707]
[1741431223692,13.83128864,138.65,138.58,79.94522707]
[1741431225887,0.14216157,138.63,138.58,79.94522707]
[1741431227782,0.14216157,138.64,138.6,13.68912707]
[1741431227971,0.14216157,138.64,138.59,32.33877593]
[1741431228905,13.83128864,138.66,138.6,13.68912707]
[1741431229203,13.83128864,138.66,138.6,54.68912707]
[1741431230084,13.83128864,138.66,138.61,7.2144]
[1741431232395,0.14216157,138.64,138.6,48.2149]
[1741431232906,0.14216157,138.63,138.6,48.2149]
[1741431233204,0.14216157,138.63,138.6,7.2149]
[1741431238204,0.14216157,138.64,138.6,7.2149]
[1741431241103,0.14216157,138.64,138.59,13.4883]
[1741431244594,0.14216157,138.64,138.59,31.5271]
[1741431244793,0.14216157,138.66,138.6,13.68912707]
[1741431245110,0.14216157,138.66,138.6,54.68912707]
[1741431245886,0.14216157,138.66,138.61,7.2144]
[1741431246092,0.14216157,138.66,138.61,20.90352707]
[1741431247117,0.14216157,138.67,138.62,13.68912707]
[1741431247718,0.14216157,138.67,138.61,13.68912707]
[1741431247914,0.14216157,138.67,138.61,20.90352707]
[1741431248116,13.83128864,138.67,138.61,20.90352707]
[1741431248514,0.14216157,138.68,138.63,13.68912707]
[1741431249619,0.14216157,138.68,138.66,13.68912707]
[1741431249803,0.03,138.69,138.66,20.90062707]
[1741431250118,0.03,138.69,138.66,7.2115]
[1741431250722,0.03,138.69,138.66,20.90062707]
[1741431251319,0.03,138.69,138.67,13.68912707]
[1741431252018,0.03,138.69,138.67,20.89992707]
[1741431252502,0.03,138.69,138.68,13.68912707]
[1741431252820,0.03,138.69,138.68,54.68912707]
[1741431254510,0.03,138.69,138.68,61.89992707]
[1741431258112,0.03,138.69,138.68,82.16097593]
[1741431266139,0.03,138.69,138.67,54.75650828]
[1741431266140,0.03,138.69,138.65,59.0308]
[1741431266300,0.03,138.69,138.66,20.90092707]
[1741431267911,0.03,138.69,138.67,13.68912707]
[1741431268113,0.03,138.69,138.68,0.033]
[1741431269616,13.86128864,138.69,138.68,0.033]
[1741431271012,21.07158864,138.69,138.68,0.033]
[1741431280729,13.86128864,138.69,138.68,0.033]
[1741431280928,0.17216157,138.69,138.68,0.033]
[1741431284346,0.17216157,138.69,138.68,33.72212707]
[1741431285241,0.17216157,138.69,138.68,40.93292707]
[1741431288647,0.17216157,138.69,138.68,27.2438]
[1741431289849,0.17216157,138.69,138.68,0.033]
[1741431292520,13.86128864,138.69,138.68,0.033]
[1741431294918,0.17216157,138.69,138.68,0.033]
[1741431301659,21.07158864,138.69,138.68,0.033]
[1741431304869,13.86128864,138.69,138.68,0.033]
[1741431305348,21.07158864,138.69,138.68,0.033]
[1741431305549,13.86128864,138.69,138.68,0.033]
[1741431306144,0.17216157,138.69,138.68,0.033]
[1741431311876,0.17216157,138.69,138.68,7.2438]
[1741431312982,0.17216157,138.69,138.68,0.033]
[1741431325269,21.07158864,138.69,138.68,0.033]
[1741431327298,0.17216157,138.69,138.68,0.033]
[1741431329768,0.17216157,138.69,138.68,33.72212707]
[1741431330173,0.17216157,138.69,138.68,39.94212707]
[1741431332002,0.17216157,138.69,138.68,26.253]
[1741431332181,0.17216157,138.69,138.68,33.4638]
[1741431332487,0.17216157,138.69,138.68,47.15292707]
[1741431333201,0.17216157,138.69,138.68,33.4638]
[1741431333399,0.17216157,138.69,138.68,47.15292707]
[1741431335908,0.17216157,138.69,138.68,39.94212707]
[1741431336601,0.17216157,138.69,138.68,0.033]
[1741431360696,0.17216157,138.69,138.68,13.72212707]
[1741431360900,0.17216157,138.69,138.68,15.23522707]
[1741431362728,0.17216157,138.69,138.68,22.44602707]
[1741431365003,0.17216157,138.69,138.68,41.09567593]
[1741431365619,0.17216157,138.69,138.68,82.09567593]
[1741431366845,7.5353,138.79,138.71,20.0]
[1741431367136,20.89322707,138.81,138.75,13.68912707]
[1741431368826,0.14216157,138.8,138.75,13.68912707]
[1741431369418,0.14216157,138.8,138.77,13.68912707]
[1741431369622,0.14216157,138.81,138.77,13.68912707]
[1741431370410,0.14216157,138.82,138.77,13.68912707]
[1741431371423,13.83128864,138.82,138.77,13.68912707]
[1741431371727,21.03508864,138.82,138.77,13.68912707]
[1741431372031,0.03,138.81,138.77,13.68912707]
[1741431377740,0.03,138.81,138.78,13.68912707]
[1741431377906,0.03,138.81,138.8,13.68912707]
[1741431379033,0.03,138.81,138.78,15.25662707]
[1741431381608,0.17216157,138.81,138.77,19.90912707]
[1741431382150,0.17216157,138.81,138.77,6.22]
[1741431383750,0.17216157,138.81,138.78,10.01937902]
[1741431383928,0.14216157,138.79,138.78,10.01937902]
[1741431384418,0.14216157,138.79,138.77,6.22]
[1741431386452,0.14216157,138.8,138.77,6.22]
[1741431386943,0.14216157,138.8,138.76,13.68912707]
[1741431388346,13.83128864,138.79,138.72,47.0459]
[1741431388522,13.83128864,138.79,138.72,41.0]
[1741431388523,0.14216157,138.77,138.72,41.0]
[1741431388839,0.14216157,138.77,138.72,60.90912707]
[1741431389529,0.14216157,138.77,138.72,54.68912707]
[1741431390915,7.34876157,138.77,138.72,54.68912707]
[1741431392345,7.34876157,138.77,138.72,13.68912707]
[1741431394221,7.34876157,138.77,138.71,56.28382707]
[1741431394222,21.03788864,138.77,138.71,56.28382707]
[1741431394541,0.14216157,138.75,138.71,56.28382707]
[1741431394746,0.14216157,138.75,138.71,13.68912707]
[1741431395115,0.14216157,138.76,138.71,13.68912707]
[1741431396449,0.14216157,138.74,138.71,13.68912707]
[1741431398541,7.34896157,138.76,138.72,13.68912707]
[1741431400850,7.34896157,138.76,138.7,48.2095]
[1741431400851,7.34896157,138.76,138.71,13.68912707]
[1741431402349,7.34896157,138.76,138.7,13.68912707]
[1741431403744,21.03808864,138.76,138.7,13.68912707]
[1741431404254,39.05478864,138.76,138.69,54.72212707]
[1741431404429,0.14216157,138.74,138.69,54.72212707]
[1741431405650,7.34936157,138.75,138.69,54.72212707]
[1741431406639,21.03848864,138.75,138.69,54.72212707]
[1741431407253,21.03848864,138.75,138.69,13.72212707]
[1741431408450,0.14216157,138.73,138.69,0.033]
[1741431408655,13.83128864,138.73,138.69,0.033]
[1741431410032,0.14216157,138.71,138.69,0.033]
[1741431411264,0.14216157,138.72,138.69,0.033]
[1741431411840,0.14216157,138.7,138.69,0.033]
[1741431412543,0.14216157,138.71,138.69,0.033]
[1741431413054,0.14216157,138.72,138.69,0.033]
[1741431414830,7.35096157,138.72,138.69,0.033]
[1741431417648,0.14216157,138.72,138.69,0.033]
[1741431432862,0.17216157,138.72,138.69,0.033]
[1741431434974,7.38096157,138.72,138.69,0.033]
[1741431435273,0.03,138.72,138.7,13.68912707]
[1741431435676,0.03,138.72,138.71,13.68912707]
[1741431437073,0.03,138.72,138.71,20.89832707]
[1741431437883,0.03,138.72,138.71,39.54797593]
[1741431439386,0.03,138.72,138.71,80.54797593]
[1741431439687,0.03,138.75,138.74,20.0]
[1741431439864,0.03,138.75,138.74,33.68912707]
[1741431440385,0.03,138.75,138.74,35.21522707]
[1741431440785,0.03,138.75,138.74,89.97173535]
[1741431441280,0.03,138.75,138.74,35.21522707]
[1741431441618,0.03,138.75,138.74,42.42292707]
[1741431445979,0.03,138.75,138.74,83.42292707]
[1741431446310,0.03,138.75,138.74,76.21522707]
[1741431446632,0.03,138.75,138.74,74.68912707]
[1741431446778,0.03,138.75,138.74,81.89682707]
[1741431453522,0.03,138.75,138.74,74.68912707]
[1741431454099,0.03,138.75,138.74,54.68912707]
[1741431454618,0.03,138.75,138.74,61.89682707]
[1741431462535,0.03,138.77,138.74,135.30298421]
[1741431462836,0.03,138.77,138.76,52.33877593]
[1741431463545,0.03,138.81,138.77,18.64964886]
[1741431463704,0.03,138.81,138.8,13.68912707]
[1741431465300,0.03,138.81,138.79,13.68912707]
[1741431465729,0.03,138.81,138.78,60.90912707]
[1741431466038,0.03,138.81,138.78,41.0]
[1741431466831,0.03,138.81,138.78,54.68912707]
[1741431468154,0.17216157,138.81,138.78,41.0]
[1741431469250,0.14216157,138.8,138.78,41.0]
[1741431469749,0.14216157,138.8,138.77,13.68912707]
[1741431470414,0.14216157,138.8,138.77,13.72212707]
[1741431472051,0.14216157,138.8,138.78,13.68912707]
[1741431473447,0.14216157,138.8,138.77,13.72212707]
[1741431473448,0.14216157,138.79,138.77,13.72212707]
[1741431474551,0.14216157,138.8,138.77,13.72212707]
[1741431475246,0.14216157,138.8,138.77,0.033]
[1741431475551,0.14216157,138.79,138.77,0.033]
[1741431476918,0.03,138.81,138.77,0.033]
[1741431477250,7.2342,138.81,138.77,0.033]
[1741431477446,0.14216157,138.8,138.77,0.033]
[1741431479161,0.03,138.81,138.77,0.033]
[1741431481446,0.03,138.81,138.77,13.72212707]
[1741431482749,0.03,138.81,138.78,7.2056]
[1741431483354,0.03,138.81,138.77,0.033]
[1741431484050,0.03,138.81,138.77,7.2391]
[1741431485558,0.03,138.81,138.79,13.68912707]
[1741431485934,0.03,138.81,138.78,13.68912707]
[1741431488863,0.03,138.81,138.78,20.89442707]
[1741431489365,0.03,138.81,138.79,13.68912707]
[1741431489730,0.03,138.81,138.8,13.68912707]
[1741431493248,0.03,138.81,138.78,61.89462707]
[1741431493448,0.03,138.81,138.78,20.89462707]
[1741431494676,0.03,138.81,138.79,13.68912707]
[1741431494969,0.03,138.81,138.79,20.89412707]
[1741431496367,0.03,138.81,138.78,13.68912707]
[1741431496867,0.03,138.81,138.77,54.72212707]
[1741431497052,0.03,138.81,138.77,0.033]
[1741431497250,0.03,138.81,138.77,20.92812707]
[1741431497462,0.03,138.81,138.78,13.68912707]
[1741431498583,0.03,138.81,138.79,13.68912707]
[1741431499149,0.03,138.81,138.78,20.89422707]
[1741431502951,0.03,138.81,138.77,41.033]
[1741431505572,0.03,138.81,138.77,54.72212707]
[1741431508267,0.03,138.81,138.77,13.72212707]
[1741431508468,0.03,138.81,138.77,20.92822707]
[1741431511565,0.03,138.81,138.78,13.68912707]
[1741431514177,0.03,138.81,138.78,20.89462707]
[1741431515187,0.03,138.81,138.79,13.68912707]
[1741431516255,0.03,138.81,138.78,20.89462707]
[1741431525562,0.03,138.81,138.77,41.033]
[1741431525768,13.86128864,138.81,138.77,41.033]
[1741431526083,13.86128864,138.81,138.77,0.033]
[1741431526276,13.68912707,138.8,138.77,0.033]
[1741431526580,0.14216157,138.79,138.77,0.033]
[1741431527382,7.34676157,138.8,138.77,0.033]
[1741431529980,0.17216157,138.81,138.77,0.033]
[1741431530480,7.37636157,138.81,138.77,0.033]
[1741431530681,0.03,138.8,138.77,0.033]
[1741431535305,0.03,138.8,138.77,13.72212707]
[1741431535512,0.03,138.8,138.79,13.68912707]
[1741431537706,0.03,138.8,138.79,20.89422707]
[1741431540912,0.03,138.8,138.78,20.89452707]
[1741431542500,0.03,138.8,138.77,61.92802707]
[1741431547323,0.03,138.8,138.78,13.68912707]
[1741431549495,0.03,138.8,138.78,20.89442707]
[1741431550505,0.03,138.8,138.77,54.72212707]
[1741431550725,0.03,138.8,138.77,41.033]
[1741431552827,0.03,138.8,138.77,0.033]
[1741431555126,13.83128864,138.78,138.77,0.033]
[1741431555905,19.98088864,138.78,138.77,0.033]
[1741431556243,27.18648864,138.78,138.77,0.033]
[1741431557532,47.4812375,138.78,138.77,0.033]
[1741431558815,0.14216157,138.76,138.72,0.033]
[1741431559037,13.83128864,138.73,138.72,0.033]
[1741431560711,0.14216157,138.73,138.72,0.033]
[1741431572347,13.83128864,138.73,138.72,0.033]
[1741431573646,21.03948864,138.73,138.72,0.033]
[1741431574260,13.83128864,138.73,138.72,0.033]
[1741431575042,0.14216157,138.73,138.72,0.033]
[1741431598577,13.83128864,138.73,138.72,0.033]
[1741431598958,0.14216157,138.73,138.72,0.033]
[1741431603378,21.03948864,138.73,138.72,0.033]
[1741431603582,47.7914375,138.73,138.72,0.033]
[1741431603886,97.7914375,138.73,138.72,0.033]
[1741431604750,29.14178864,138.73,138.72,0.033]
[1741431605387,97.7914375,138.73,138.72,0.033]
[1741431609887,50.14216157,138.7,138.69,0.033]
[1741431610074,88.6809375,138.7,138.69,0.0001]
[1741431610389,102.748264,138.7,138.69,0.0001]
[1741431611396,18.79181043,138.67,138.63,0.033]
[1741431611605,13.83128864,138.64,138.63,0.033]
[1741431612097,21.04418864,138.64,138.63,0.033]
[1741431613886,13.83128864,138.64,138.63,0.033]
[1741431614397,21.04418864,138.64,138.63,0.033]
[1741431620101,0.14216157,138.64,138.63,0.033]
[1741431620594,21.04418864,138.64,138.63,0.033]
[1741431620790,13.83128864,138.64,138.63,0.033]
[1741431621180,0.14216157,138.64,138.63,0.033]
[1741431622377,13.83128864,138.64,138.63,0.033]
[1741431622683,21.04418864,138.64,138.63,0.033]
[1741431622882,13.83128864,138.64,138.63,0.033]
[1741431624385,21.04418864,138.64,138.63,0.033]
[1741431626802,13.83128864,138.64,138.63,0.033]
[1741431626971,0.14216157,138.64,138.63,0.033]
[1741431632886,21.04418864,138.64,138.63,0.033]
[1741431634905,0.14216157,138.64,138.63,0.033]
[1741431635218,39.6938375,138.64,138.63,0.033]
[1741431637504,0.14216157,138.61,138.59,0.033]
[1741431637682,50.0,138.62,138.59,0.033]
[1741431637683,13.83128864,138.6,138.59,0.033]
[1741431638806,21.04628864,138.6,138.59,0.033]
[1741431639311,89.6959375,138.6,138.59,0.033]
[1741431640209,13.83128864,138.6,138.59,0.033]
[1741431643898,0.14216157,138.6,138.59,0.033]
[1741431645493,13.83128864,138.6,138.59,0.033]
[1741431645694,21.04628864,138.6,138.59,0.033]
[1741431654810,150.67244578,138.6,138.59,0.033]
[1741431656027,150.67244578,138.6,138.59,0.0001]
[1741431656315,152.67244578,138.6,138.59,0.0001]
[1741431656522,150.67244578,138.6,138.59,0.0001]
[1741431659507,154.30008912,138.6,138.59,0.0001]
[1741431659706,156.30008912,138.6,138.59,0.0001]
[1741431661113,0.14216157,138.56,138.51,6.0453]
[1741431661318,0.14216157,138.53,138.51,6.0453]
[1741431663399,0.14216157,138.53,138.5,8.8122]
[1741431663606,0.14216157,138.53,138.5,1.592]
[1741431666127,0.14216157,138.53,138.5,8.8121]
[1741431666432,0.14216157,138.53,138.52,13.68912707]
[1741431666739,0.14216157,138.58,138.52,13.68912707]
[1741431666917,0.14216157,138.58,138.53,13.68912707]
[1741431667315,0.14216157,138.58,138.53,20.90722707]
[1741431667815,0.14216157,138.6,138.55,1.6374]
[1741431668324,13.68912707,138.59,138.55,1.6374]
[1741431668536,0.14216157,138.58,138.55,1.6374]
[1741431668903,0.14216157,138.59,138.55,1.6374]